bitfinex/quotes_SOLUSD_20250928
["timestamp","ask_amount","ask_price","bid_price","bid_amount"]
[1759020165646,135.62101735,204.07,204.02,0.71]
[1759020165843,136.32101735,204.07,204.01,2.02101735]
[1759020166040,136.32101735,204.07,204.02,0.71]
[1759020166245,37.94,204.08,204.03,0.71]
[1759020166449,37.94,204.08,204.04,0.71]
[1759020166743,37.94,204.08,204.05,4.90075961]
[1759020167858,0.7,204.07,204.02,0.71]
[1759020168057,0.7,204.06,204.02,0.71]
[1759020168671,0.7,204.06,204.02,4.90148024]
[1759020168875,0.7,204.06,204.02,5.61148024]
[1759020170767,2.02101735,204.07,204.03,0.69]
[1759020170949,2.68101735,204.07,204.03,0.69]
[1759020171149,2.02101735,204.06,204.03,0.69]
[1759020171975,2.68101735,204.06,204.03,0.69]
[1759020172168,2.68101735,204.06,204.02,17.15518085]
[1759020172380,2.02101735,204.04,204.01,4.90168217]
[1759020172545,2.02101735,204.06,204.03,4.90124001]
[1759020173048,2.68101735,204.06,204.03,4.90124001]
[1759020174643,2.68101735,204.06,204.02,4.90148024]
[1759020174841,2.68101735,204.06,204.02,5.59148024]
[1759020178050,2.02101735,204.06,204.03,0.69]
[1759020178468,2.68101735,204.06,204.02,4.90148024]
[1759020178756,2.68101735,204.06,204.02,5.59148024]
[1759020180546,0.66,204.1,204.03,0.69]
[1759020180746,2.02101735,204.11,204.05,2.02101735]
[1759020180942,136.28101735,204.12,204.06,2.71101735]
[1759020181145,136.28101735,204.12,204.07,0.69]
[1759020181575,2.02101735,204.11,204.07,0.69]
[1759020181768,2.02101735,204.11,204.08,0.69]
[1759020181965,135.62101735,204.12,204.09,0.69]
[1759020182161,133.6,204.12,204.1,0.69]
[1759020182551,1e-08,204.13,204.1,0.69]
[1759020182755,2.02101736,204.13,204.1,0.69]
[1759020183054,1e-08,204.13,204.1,0.69]
[1759020183370,1e-08,204.13,204.11,0.69]
[1759020184167,1e-08,204.13,204.12,4.89907897]
[1759020185872,1e-08,204.13,204.09,2.02101735]
[1759020185873,2.68101736,204.13,204.09,2.02101735]
[1759020186178,2.02101735,204.1,204.06,17.15131234]
[1759020186474,2.02101735,204.1,204.07,0.69]
[1759020187577,2.02101735,204.1,204.08,4.9000392]
[1759020188165,2.02101735,204.09,204.06,4.90029239]
[1759020188458,2.02101735,204.09,204.06,5.59029239]
[1759020189772,2.68101735,204.1,204.06,5.59029239]
[1759020191262,2.02101735,204.1,204.07,0.66]
[1759020191980,2.02101735,204.1,204.05,17.15255262]
[1759020192182,2.02101735,204.1,204.08,0.66]
[1759020193382,2.02101735,204.1,204.09,4.8997991]
[1759020195159,2.02101735,204.1,204.08,4.9000392]
[1759020196186,1e-08,204.13,204.09,0.66]
[1759020196383,1e-08,204.13,204.11,2.02101735]
[1759020196565,1e-08,204.13,204.12,2.02101735]
[1759020196964,1e-08,204.13,204.12,2.68101735]
[1759020197280,1e-08,204.13,204.12,9.54526372]
[1759020197467,1e-08,204.13,204.12,23.14085773]
[1759020199578,1e-08,204.13,204.12,61.12085773]
[1759020200582,1e-08,204.13,204.12,61.10085773]
[1759020201457,1e-08,204.13,204.12,61.08085773]
[1759020212694,1e-08,204.13,204.12,60.35179551]
[1759020214494,1e-08,204.13,204.12,6.86424637]
[1759020214495,0.68000001,204.13,204.12,6.86424637]
[1759020214976,1e-08,204.13,204.12,22.44179551]
[1759020215171,1e-08,204.13,204.12,60.36179551]
[1759020216500,1e-08,204.13,204.12,22.44179551]
[1759020216703,1e-08,204.13,204.12,60.36179551]
[1759020217096,0.1,204.19,204.12,60.36179551]
[1759020217304,1e-08,204.2,204.19,13.59559401]
[1759020217474,1e-08,204.2,204.19,52.82754914]
[1759020217674,0.1,204.21,204.19,52.82754914]
[1759020217675,1e-08,204.21,204.19,52.82754914]
[1759020217905,1.27195514,204.28,204.2,1.29195513]
[1759020218113,1.27195514,204.28,204.22,1.29195513]
[1759020218276,0.1,204.29,204.23,39.23195513]
[1759020218277,1.39195513,204.29,204.23,39.23195513]
[1759020218479,1.39195513,204.29,204.24,37.94]
[1759020218717,1.39195513,204.29,204.25,4.89596083]
[1759020219798,0.1,204.29,204.25,4.89596083]
[1759020219979,0.68,204.28,204.25,4.89596083]
[1759020220792,0.68,204.28,204.25,42.85596083]
[1759020221998,0.68,204.28,204.25,42.83596083]
[1759020222389,0.1,204.29,204.27,1.29195513]
[1759020222580,0.1,204.29,204.28,37.94]
[1759020222901,0.1,204.29,204.25,17.13586291]
[1759020222902,0.78,204.29,204.25,17.13586291]
[1759020223088,0.68,204.28,204.25,17.13586291]
[1759020223298,0.68,204.28,204.26,37.96]
[1759020223599,0.1,204.29,204.26,37.96]
[1759020223782,0.78,204.29,204.26,37.96]
[1759020224297,0.1,204.29,204.26,37.96]
[1759020224796,0.1,204.29,204.27,4.89548147]
[1759020225692,0.1,204.29,204.27,42.83548147]
[1759020226202,0.1,204.29,204.27,44.1274366]
[1759020226584,0.1,204.29,204.27,44.8174366]
[1759020226984,0.1,204.29,204.27,44.1274366]
[1759020227198,0.1,204.29,204.27,44.8174366]
[1759020227418,0.1,204.29,204.27,44.1274366]
[1759020227916,0.1,204.29,204.27,46.88939173]
[1759020228108,0.1,204.29,204.27,44.8174366]
[1759020228485,0.1,204.29,204.27,6.1874366]
[1759020228686,0.1,204.29,204.28,37.92]
[1759020228906,0.1,204.29,204.28,39.99195513]
[1759020229082,0.1,204.29,204.28,39.21195513]
[1759020229401,0.1,204.29,204.28,44.10719695]
[1759020229900,0.1,204.29,204.28,42.81524182]
[1759020230405,0.76,204.29,204.27,37.92]
[1759020230998,0.66,204.28,204.25,6.86788394]
[1759020231200,0.1,204.29,204.25,6.86788394]
[1759020231402,0.1,204.29,204.27,4.89548147]
[1759020232783,1.95195513,204.28,204.23,37.92]
[1759020232992,1.95195513,204.28,204.23,37.94]
[1759020233198,1.39195513,204.29,204.23,37.94]
[1759020233403,0.1,204.29,204.23,1.98195513]
[1759020233589,0.1,204.29,204.24,39.23195513]
[1759020233784,0.1,204.29,204.25,1.29195513]
[1759020233984,0.1,204.29,204.24,39.92195513]
[1759020234407,0.76,204.29,204.24,37.94]
[1759020234704,0.66,204.28,204.23,37.92]
[1759020234894,0.1,204.29,204.24,5.58620054]
[1759020235103,0.66,204.28,204.24,42.81620054]
[1759020235804,0.1,204.29,204.24,43.50620054]
[1759020235984,0.76,204.29,204.24,43.50620054]
[1759020237000,0.76,204.29,204.24,55.74670191]
[1759020237797,0.76,204.29,204.24,55.05670191]
[1759020237987,0.26,204.29,204.25,0.69]
[1759020238186,1.29195513,204.3,204.26,4.89572113]
[1759020239501,1.29195513,204.3,204.26,5.58572113]
[1759020240817,1.29195513,204.3,204.24,50.14050137]
[1759020240818,1.61195513,204.3,204.25,4.89596083]
[1759020241109,1.29195513,204.3,204.26,0.69]
[1759020242496,1.29195513,204.3,204.26,5.58563563]
[1759020243808,1.29195513,204.3,204.27,0.69]
[1759020244109,1.39195513,204.31,204.27,0.69]
[1759020245510,1.39195513,204.31,204.27,5.58540124]
[1759020245709,1.29195513,204.3,204.27,5.58540124]
[1759020245894,1.29195513,204.3,204.27,15.42007145]
[1759020246299,1.29195513,204.3,204.26,4.89566119]
[1759020246612,1.29195513,204.3,204.26,20.31573263]
[1759020247207,1.29195513,204.3,204.27,0.69]
[1759020247412,1.29195513,204.3,204.27,5.58545804]
[1759020247616,1.29195513,204.3,204.27,20.31552948]
[1759020248717,1.29195513,204.3,204.28,0.69]
[1759020249011,0.1,204.31,204.19,0.69]
[1759020249012,1.61195513,204.29,204.19,0.69]
[1759020249202,1.29195513,204.23,204.19,0.69]
[1759020249400,1.29195513,204.22,204.2,14.73441222]
[1759020249697,1.29195513,204.21,204.2,14.73441222]
[1759020250012,1.61195513,204.21,204.15,0.7]
[1759020250205,1.29195513,204.19,204.15,0.7]
[1759020250386,1.29195513,204.19,204.16,15.43441222]
[1759020250594,1.29195513,204.17,204.14,0.7]
[1759020250908,1.29195513,204.17,204.1,13.54060161]
[1759020250909,1.29195513,204.15,204.13,14.74020391]
[1759020251212,1.29195513,204.16,204.13,0.7]
[1759020251398,1.29195513,204.16,204.13,5.59649862]
[1759020251797,1.29195513,204.15,204.13,4.89649862]
[1759020251996,1.61195513,204.14,204.07,4.90027931]
[1759020252201,1.29195513,204.11,204.08,14.74382602]
[1759020252403,1.29195513,204.11,204.09,0.7]
[1759020252609,1.29195513,204.12,204.1,0.7]
[1759020253606,1.29195513,204.12,204.09,4.59973426]
[1759020253793,1.29195513,204.1,204.03,4.90124001]
[1759020253998,1.29195513,204.09,204.03,6.19319514]
[1759020254216,0.67,204.11,204.06,3.99401078]
[1759020254416,1.29195513,204.09,204.06,3.99401078]
[1759020254919,1.29195513,204.09,204.07,4.90027931]
[1759020255516,1.29195513,204.09,204.07,5.60027931]
[1759020256017,1.29195513,204.09,204.07,4.90027931]
[1759020256221,1.29195513,204.09,204.08,0.7]
[1759020256611,1.29195513,204.09,204.07,4.90027931]
[1759020256799,1.29195513,204.09,204.07,0.7]
[1759020257727,1.29195513,204.11,204.08,0.7]
[1759020257909,1.29195513,204.12,204.09,0.7]
[1759020258525,1.29195513,204.11,204.09,4.89970246]
[1759020260223,1.29195513,204.11,204.08,4.9000392]
[1759020260418,1.29195513,204.11,204.08,5.6100392]
[1759020260624,1.29195513,204.11,204.09,0.71]
[1759020261527,1.29195513,204.12,204.1,0.71]
[1759020262629,1.29195513,204.12,204.08,27.70319945]
[1759020262934,1.29195513,204.11,204.08,14.74310145]
[1759020263103,1.29195513,204.11,204.08,15.45310145]
[1759020263520,1.29195513,204.1,204.08,19.64296017]
[1759020263704,1.29195513,204.1,204.05,5.61053658]
[1759020263705,1.29195513,204.09,204.05,5.61053658]
[1759020263913,1.29195513,204.07,204.05,20.35581195]
[1759020264113,1.29195513,204.07,204.05,5.61053658]
[1759020264928,1.29195513,204.07,204.06,5.61051945]
[1759020266123,1.29195513,204.08,204.06,5.61051945]
[1759020266305,1.29195513,204.08,204.07,0.71]
[1759020266511,1.29195513,204.09,204.07,0.71]
[1759020266711,1.29195513,204.08,204.06,4.90051945]
[1759020267116,1.29195513,204.08,204.06,5.61051945]
[1759020271149,43.10782052,204.16,204.05,14.74527537]
[1759020271150,2.01195513,204.07,204.05,14.74527537]
[1759020271357,2.01195513,204.06,204.0,4.90178339]
[1759020271638,1.29195513,204.02,204.0,4.90178339]
[1759020271837,1.29195513,204.02,204.0,5.61178339]
[1759020272221,1.29195513,204.03,204.01,0.71]
[1759020272620,2.02243238,204.03,204.01,5.61158638]
[1759020274028,2.02243238,204.03,204.01,0.71]
[1759020274234,2.02243238,204.03,204.0,4.90193403]
[1759020274437,2.02243238,204.02,204.0,5.61193403]
[1759020274614,2.02243238,204.03,204.0,5.61193403]
[1759020274819,2.02243238,204.01,203.99,14.74962511]
[1759020275117,2.02243238,204.05,204.01,14.74889998]
[1759020275374,2.02243238,204.05,204.02,0.71]
[1759020275565,2.02243238,204.05,204.01,14.74889998]
[1759020275566,2.02243238,204.05,204.03,0.71]
[1759020276568,2.02243238,204.05,204.02,5.61148024]
[1759020277596,2.02243238,204.05,204.02,4.90148024]
[1759020277899,2.02243238,204.04,204.0,0.71]
[1759020278079,2.02243238,204.01,204.0,14.74889998]
[1759020278395,2.02243238,204.01,203.96,0.71]
[1759020278564,2.02243238,204.0,203.98,4.90244141]
[1759020278765,2.02243238,204.01,203.98,4.90244141]
[1759020279083,2.02243238,204.0,203.97,5.61266197]
[1759020282064,2.02243238,204.0,203.97,4.90266197]
[1759020282272,2.02243238,204.0,203.98,5.61236542]
[1759020282681,2.02243238,204.0,203.98,4.90236542]
[1759020283488,2.02243238,204.01,203.98,5.61236542]
[1759020286093,2.02243238,204.01,203.99,0.71]
[1759020286791,2.02243238,204.02,203.99,0.71]
[1759020288091,134.32,204.06,204.0,17.86686274]
[1759020288269,2.02243238,204.04,204.0,5.61196078]
[1759020288474,2.02243238,204.04,204.0,20.36158589]
[1759020288992,2.02243238,204.04,204.0,5.61196078]
[1759020289187,2.02243238,204.04,204.01,0.71]
[1759020289379,2.02243238,204.05,204.01,14.74962511]
[1759020289580,2.02243238,204.05,204.02,0.71]
[1759020289979,2.74243238,204.05,204.01,14.74962511]
[1759020290292,2.74243238,204.05,204.01,20.34113225]
[1759020290500,2.02243238,204.04,204.01,20.34113225]
[1759020291223,133.6,204.06,204.02,2.71243238]
[1759020291384,2.02243238,204.1,204.03,2.71243238]
[1759020291697,2.02243238,204.04,204.02,14.74672499]
[1759020292217,2.02243238,204.04,204.02,19.64818093]
[1759020292786,2.02243238,204.07,204.03,0.69]
[1759020293010,2.02243238,204.09,204.03,0.69]
[1759020293192,2.02243238,204.09,204.03,2.71243238]
[1759020293504,2.02243238,204.07,204.02,32.59188154]
[1759020293679,2.02243238,204.07,204.03,0.69]
[1759020293879,2.02243238,204.07,204.04,0.69]
[1759020294307,0.68,204.09,204.04,5.59080366]
[1759020294477,0.68,204.08,204.04,5.59080366]
[1759020294803,136.30243238,204.1,204.05,0.69]
[1759020295005,3.97339549,204.09,204.05,0.69]
[1759020295209,133.6,204.1,204.06,5.59080366]
[1759020295616,134.28,204.1,204.06,5.59080366]
[1759020296287,134.28,204.1,204.06,4.90080366]
[1759020296502,0.68,204.09,204.06,4.90080366]
[1759020298607,135.62243238,204.1,204.06,9.8013162]
[1759020298805,5.32064366,204.09,204.06,4.90080366]
[1759020298985,2.70243238,204.09,204.06,4.90080366]
[1759020301782,2.02243238,204.09,204.06,10.4913215]
[1759020301996,37.94,204.09,204.06,10.4913215]
[1759020302502,39.96243238,204.09,204.06,5.59080366]
[1759020302804,2.02243238,204.07,203.98,0.69]
[1759020303007,2.02243238,204.02,204.0,5.59080366]
[1759020303214,0.68,204.01,204.0,5.59080366]
[1759020303503,2.70243238,204.01,203.96,0.69]
[1759020303708,39.96243238,204.02,203.98,19.18259136]
[1759020303891,37.94,204.02,203.99,0.69]
[1759020305113,37.94,204.02,204.0,0.69]
[1759020305408,2.02243238,204.03,204.01,0.69]
[1759020305719,2.02243238,204.03,204.01,5.59168938]
[1759020306295,2.02243238,204.04,204.01,4.90168938]
[1759020306617,133.6,204.06,204.02,0.69]
[1759020306807,2.02243238,204.05,204.01,4.90168938]
[1759020307005,2.70243238,204.04,204.01,4.90168938]
[1759020307309,39.98243238,204.05,204.01,5.59168938]
[1759020307512,135.62243238,204.06,204.02,0.69]
[1759020307719,135.62243238,204.06,204.0,17.1567914]
[1759020307903,135.62243238,204.06,204.03,0.69]
[1759020308305,133.6,204.06,204.03,0.69]
[1759020309225,133.6,204.06,204.03,5.59112033]
[1759020309724,133.6,204.06,204.04,0.71]
[1759020310725,133.6,204.06,204.05,4.90075961]
[1759020311025,133.6,204.06,204.04,5.61099863]
[1759020311323,133.6,204.06,204.04,4.90099863]
[1759020312229,133.6,204.06,204.03,4.90124001]
[1759020312519,133.6,204.06,204.03,5.61124001]
[1759020313124,133.6,204.06,204.04,0.71]
[1759020314338,133.6,204.06,204.02,17.15487764]
[1759020314515,135.62243238,204.06,204.03,0.71]
[1759020314717,2.02243238,204.05,204.02,4.90148024]
[1759020314922,2.02243238,204.03,203.99,12.25514101]
[1759020315121,2.02243238,204.03,203.99,12.96514101]
[1759020315342,2.02243238,204.03,204.0,5.61194773]
[1759020315524,2.02243238,204.03,204.01,0.71]
[1759020316835,2.02243238,204.03,204.01,4.90161274]
[1759020317145,2.02243238,204.03,203.99,0.71]
[1759020317339,2.02243238,204.0,203.96,12.96675931]
[1759020317526,2.02243238,204.0,203.97,0.71]
[1759020317843,2.02243238,204.0,203.98,0.71]
[1759020318412,2.02243238,204.0,203.96,12.25675931]
[1759020318618,2.02243238,204.0,203.97,5.61245261]
[1759020319221,2.02243238,204.01,203.97,5.61245261]
[1759020319416,2.02243238,204.02,203.98,0.71]
[1759020319630,39.98243238,204.03,203.98,0.71]
[1759020320527,37.96,204.03,203.99,4.90220108]
[1759020320729,2.02243238,204.01,203.98,4.90242027]
[1759020320911,2.72243238,204.0,203.97,4.90265909]
[1759020321317,2.02243238,203.99,203.97,4.90265909]
[1759020322738,2.02243238,203.99,203.97,5.57265909]
[1759020323818,2.02243238,203.99,203.97,4.90265909]
[1759020324233,2.02243238,204.0,203.97,4.90265909]
[1759020324543,2.02243238,203.99,203.97,4.90265909]
[1759020324737,2.02243238,203.99,203.97,5.57265909]
[1759020325120,2.02243238,203.99,203.94,12.25815969]
[1759020325320,2.02243238,203.99,203.95,0.67]
[1759020325928,2.02243238,203.99,203.94,12.25815969]
[1759020326139,2.02243238,203.99,203.96,4.90292214]
[1759020326646,2.02243238,203.99,203.96,5.57292214]
[1759020327956,2.02243238,203.97,203.95,4.90311782]
[1759020328128,2.02243238,203.96,203.95,4.90311782]
[1759020328447,2.02243238,203.96,203.91,12.46006619]
[1759020328448,2.02243238,203.96,203.92,4.90388387]
[1759020328744,2.02243238,203.96,203.93,0.67]
[1759020330239,2.02243238,203.96,203.94,4.90340296]
[1759020330625,2.02243238,203.95,203.94,4.90340296]
[1759020333449,133.6,204.0,203.94,41.67892516]
[1759020333756,133.6,204.0,203.97,2.02243238]
[1759020333956,133.6,204.0,203.98,2.69243238]
[1759020334141,133.6,204.0,203.99,0.67]
[1759020334329,133.6,204.12,203.99,2.69243238]
[1759020334650,1.29347021,204.1,204.04,1.29347021]
[1759020334951,0.7,204.12,204.06,1.29347021]
[1759020334952,1.29347021,204.12,204.06,1.29347021]
[1759020335133,1.29347021,204.12,204.07,0.67]
[1759020335335,1.29347021,204.12,204.08,0.67]
[1759020335742,1.29347021,204.11,204.06,0.67]
[1759020335954,1.29347021,204.09,204.05,4.90075961]
[1759020336140,1.99347021,204.09,204.05,4.90075961]
[1759020336455,1.29347021,204.08,204.05,4.90075961]
[1759020336952,1.29347021,204.08,204.05,0.67]
[1759020337155,1.29347021,204.09,204.06,0.67]
[1759020337347,1.29347021,204.1,204.06,0.67]
[1759020337549,1.29347021,204.1,204.07,0.67]
[1759020338057,1.29347021,204.09,204.05,0.67]
[1759020338643,1.29347021,204.1,204.06,0.67]
[1759020339163,1.29347021,204.1,204.07,4.90027931]
[1759020340032,133.6,204.13,204.07,4.40027931]
[1759020340264,1.29347021,204.14,204.08,1.96347021]
[1759020340549,1.29347021,204.14,204.09,0.67]
[1759020340760,1.29347021,204.1,204.07,4.40027931]
[1759020341054,1.29347021,204.1,204.07,5.07027931]
[1759020342351,1.29347021,204.11,204.08,0.67]
[1759020343153,1.29347021,204.11,204.07,4.40027931]
[1759020343358,1.29347021,204.1,204.07,4.40027931]
[1759020343668,1.99347021,204.1,204.07,4.40027931]
[1759020344447,1.29347021,204.1,204.06,17.15167808]
[1759020344650,1.29347021,204.11,204.06,17.82167808]
[1759020344862,1.29347021,204.09,204.06,4.90051945]
[1759020345041,1.99347021,204.09,204.06,4.90051945]
[1759020345242,1.29347021,204.1,204.06,5.57051945]
[1759020345541,1.29347021,204.11,204.07,0.67]
[1759020345737,1.29347021,204.08,204.04,4.9009998]
[1759020345938,1.29347021,204.08,204.04,5.5709998]
[1759020346237,1.29347021,204.08,204.05,0.67]
[1759020346438,1.29347021,204.08,204.06,4.90051945]
[1759020348263,1.29347021,204.1,204.07,0.67]
[1759020348964,1.29347021,204.1,204.05,17.15243596]
[1759020349139,1.29347021,204.1,204.06,0.67]
[1759020349661,1.29347021,204.08,204.05,4.90075961]
[1759020350158,1.99347021,204.08,204.05,4.90075961]
[1759020350466,1.29347021,204.08,204.05,4.90075961]
[1759020350848,1.29347021,204.08,204.04,4.9009998]
[1759020351054,1.29347021,204.07,204.04,4.9009998]
[1759020351252,1.29347021,204.07,204.04,5.5509998]
[1759020352655,1.29347021,204.08,204.04,5.5509998]
[1759020353147,1.29347021,204.09,204.05,0.65]
[1759020353662,1.29347021,204.1,204.06,0.65]
[1759020353868,1.29347021,204.1,204.07,0.65]
[1759020354477,1.29347021,204.1,204.07,5.550121]
[1759020354676,1.29347021,204.1,204.07,4.900121]
[1759020355174,1.29347021,204.09,204.07,4.900121]
[1759020356074,1.29347021,204.09,204.06,4.90051945]
[1759020356578,133.6,204.12,204.07,0.65]
[1759020356790,133.6,204.12,204.07,1.94347021]
[1759020357085,133.6,204.12,204.08,1.29347021]
[1759020357256,133.6,204.12,204.09,0.65]
[1759020357770,133.6,204.12,204.1,0.65]
[1759020358157,133.6,204.12,204.11,4.89931899]
[1759020359159,135.61347021,204.12,204.09,4.89962785]
[1759020359479,1.29347021,204.1,204.09,4.89962785]
[1759020359874,2.01347021,204.1,204.03,4.90124001]
[1759020360190,1.29347021,204.06,204.03,5.55124001]
[1759020360357,0.72,204.05,203.96,12.25093097]
[1759020360556,4.89955903,204.1,203.86,0.2]
[1759020360557,1.29347021,204.0,203.95,5.55316253]
[1759020360753,1.29347021,204.0,203.96,0.65]
[1759020360975,39.31347021,204.03,203.96,1.94347021]
[1759020361162,38.02,204.03,203.97,0.65]
[1759020361367,1.29347021,204.02,203.97,0.65]
[1759020361584,1.29347021,204.02,203.98,0.65]
[1759020361886,1.29347021,204.02,203.99,0.65]
[1759020362379,1.29347021,204.02,203.99,5.55205863]
[1759020363878,1.29347021,204.01,203.98,4.90242281]
[1759020364177,1.29347021,203.99,203.96,4.90269443]
[1759020364486,1.29347021,203.99,203.96,5.55269443]
[1759020364779,1.29347021,204.0,203.97,0.65]
[1759020364984,1.29347021,204.0,203.98,0.65]
[1759020365279,1.29347021,204.0,203.96,4.90269443]
[1759020365486,1.29347021,203.97,203.94,5.55339397]
[1759020365678,1.29347021,203.97,203.92,12.25925164]
[1759020365679,1.29347021,203.95,203.92,4.90372744]
[1759020365989,1.29347021,203.95,203.92,5.55372744]
[1759020366579,1.29347021,203.95,203.91,0.2]
[1759020366882,1.29347021,203.95,203.91,0.85]
[1759020367387,0.72,203.94,203.91,0.2]
[1759020367684,1.29347021,203.92,203.91,0.2]
[1759020368893,1.29347021,203.92,203.91,5.10412436]
[1759020372473,1.29347021,203.92,203.91,0.2]
[1759020374594,1.98347021,203.92,203.91,0.2]
[1759020376797,20.48294809,203.92,203.88,0.2]
[1759020377092,1.29347021,203.89,203.88,0.2]
[1759020377501,1.98347021,203.89,203.88,0.2]
[1759020379290,1.29347021,203.89,203.88,0.2]
[1759020379811,1.98347021,203.89,203.88,0.2]
[1759020380319,38.02,203.91,203.88,0.2]
[1759020380508,1.29347021,203.89,203.88,0.2]
[1759020384133,1.97347021,203.89,203.88,0.2]
[1759020384339,1.29347021,203.89,203.88,0.2]
[1759020384527,38.02,203.9,203.88,0.2]
[1759020384731,1.29347021,203.89,203.88,0.2]
[1759020387231,1.97347021,203.89,203.88,0.2]
[1759020387629,6.87807563,203.89,203.86,0.2]
[1759020387828,6.46735105,203.87,203.84,0.2]
[1759020388014,6.46735105,203.85,203.84,0.2]
[1759020388224,1.29347021,203.85,203.84,0.2]
[1759020388527,1.97347021,203.85,203.84,0.2]
[1759020389114,20.74294506,203.85,203.81,0.2]
[1759020389315,1.29347021,203.82,203.81,0.2]
[1759020389513,39.33347021,203.82,203.81,0.2]
[1759020391242,40.01347021,203.82,203.81,0.2]
[1759020391959,53.60906422,203.82,203.78,0.2]
[1759020392257,13.59559401,203.79,203.74,0.2]
[1759020392430,1.29347021,203.75,203.74,0.2]
[1759020392628,39.35347021,203.75,203.74,0.2]
[1759020392851,40.03347021,203.75,203.74,0.2]
[1759020393341,58.80294506,203.75,203.7,0.2]
[1759020393548,1.29347021,203.71,203.7,0.2]
[1759020393723,39.35347021,203.71,203.7,0.2]
[1759020394549,40.08951664,203.71,203.7,0.2]
[1759020398547,133.6,203.74,203.7,5.77917796]
[1759020398750,133.6,203.74,203.7,0.87]
[1759020398751,2.02951664,203.71,203.7,0.87]
[1759020399051,2.02951664,203.72,203.7,5.10918016]
[1759020399230,133.6,203.74,203.7,17.38213057]
[1759020399628,2.02951664,203.75,203.72,4.90869821]
[1759020399948,2.02951664,203.75,203.73,0.67]
[1759020400246,2.02951664,203.74,203.7,5.10896582]
[1759020400753,2.02951664,203.74,203.71,0.67]
[1759020401445,2.02951664,203.74,203.72,4.90869821]
[1759020401650,2.02951664,203.74,203.73,0.67]
[1759020402933,2.02951664,203.75,203.73,0.67]
[1759020403957,2.02951664,203.74,203.73,0.67]
[1759020405754,2.02951664,203.74,203.71,5.5789078]
[1759020405934,2.02951664,203.72,203.71,0.67]
[1759020406334,2.02951664,203.72,203.7,0.2]
[1759020406535,2.02951664,203.71,203.7,0.87]
[1759020408529,133.6,203.75,203.7,7.8086968]
[1759020408731,133.6,203.75,203.71,2.69951664]
[1759020409051,133.6,203.75,203.72,0.67]
[1759020410131,133.6,203.75,203.73,0.66]
[1759020410756,133.6,203.75,203.71,4.90893917]
[1759020410950,133.6,203.75,203.74,0.66]
[1759020411855,2.02951664,203.8,203.74,2.68951664]
[1759020412060,40.10951664,203.8,203.75,0.66]
[1759020412362,38.08,203.8,203.75,2.68951664]
[1759020412662,38.08,203.8,203.76,0.66]
[1759020413063,38.08,203.8,203.77,4.90749374]
[1759020413249,2.02951664,203.85,203.78,2.68951664]
[1759020413451,2.02951664,203.85,203.79,2.68951664]
[1759020413748,2.02951664,203.85,203.8,0.66]
[1759020414259,171.7,203.88,203.82,2.02951664]
[1759020414458,173.72951664,203.88,203.83,0.66]
[1759020414665,2.02951664,203.87,203.84,0.66]
[1759020414867,173.72951664,203.88,203.84,0.66]
[1759020415168,173.72951664,203.88,203.84,5.5656161]
[1759020417267,2.02951664,203.9,203.85,0.66]
[1759020417467,4.00073648,203.97,203.88,2.02951664]
[1759020417650,2.02951664,203.92,203.85,16.32499074]
[1759020417855,2.02951664,203.9,203.86,0.66]
[1759020418252,2.02951664,203.89,203.85,14.2954741]
[1759020418457,2.02951664,203.88,203.84,4.9056161]
[1759020418666,2.02951664,203.88,203.84,5.5656161]
[1759020418969,2.02951664,203.88,203.85,0.66]
[1759020419359,2.02951664,203.88,203.86,4.90532718]
[1759020419565,38.1,203.9,203.86,5.56532718]
[1759020419566,2.02951664,203.89,203.86,5.56532718]
[1759020420171,2.02951664,203.88,203.84,4.90565176]
[1759020420874,2.02951664,203.88,203.85,0.66]
[1759020421569,2.02951664,203.88,203.85,5.56534779]
[1759020421775,2.02951664,203.86,203.82,19.66679409]
[1759020422076,2.02951664,203.86,203.83,0.66]
[1759020422462,38.1,203.87,203.82,4.90628338]
[1759020422463,2.02951664,203.85,203.82,4.90628338]
[1759020422658,2.02951664,203.85,203.83,0.66]
[1759020422863,2.02951664,203.86,203.83,0.66]
[1759020425507,2.02951664,203.85,203.83,0.66]